bitfinex/quotes_BTCUSD_20240712
["timestamp","ask_amount","ask_price","bid_price","bid_amount"]
[1720757892935,1.07425219,57071.0,57070.0,0.009097]
[1720757893419,1.07456529,57071.0,57070.0,0.009097]
[1720757893656,1.03556529,57071.0,57070.0,0.150297]
[1720757893860,1.03563404,57071.0,57070.0,0.209297]
[1720757894527,0.05110934,57071.0,57070.0,0.209297]
[1720757894792,0.05110934,57071.0,57070.0,0.331953]
[1720757895057,0.034531,57071.0,57070.0,0.577265]
[1720757895487,0.017531,57071.0,57070.0,0.882577]
[1720757895712,0.025531,57071.0,57070.0,0.882577]
[1720757895951,0.034531,57071.0,57070.0,0.882577]
[1720757896166,0.017531,57071.0,57070.0,0.209297]
[1720757896407,0.385493,57071.0,57070.0,0.209297]
[1720757896680,0.40402072,57071.0,57070.0,0.210297]
[1720757897177,0.15871272,57071.0,57070.0,0.210297]
[1720757897414,0.03605872,57071.0,57070.0,0.332953]
[1720757897856,0.03505872,57071.0,57070.0,0.331953]
[1720757898081,0.03405872,57071.0,57070.0,0.331953]
[1720757898288,0.03605872,57071.0,57070.0,0.336953]
[1720757898535,0.03605872,57071.0,57070.0,0.33987374]
[1720757898743,0.03405872,57071.0,57070.0,0.33487374]
[1720757898980,0.03505872,57071.0,57070.0,0.33687374]
[1720757899196,0.03605872,57071.0,57070.0,0.33987374]
[1720757899405,0.03605872,57071.0,57070.0,0.214297]
[1720757900672,0.03605872,57071.0,57070.0,0.21721774]
[1720757901512,0.03605872,57071.0,57070.0,0.33987374]
[1720757901737,0.03605872,57071.0,57070.0,0.89049774]
[1720757901942,0.03605872,57071.0,57070.0,0.887577]
[1720757902177,0.019531,57071.0,57070.0,0.887577]
[1720757902394,0.019531,57071.0,57070.0,1.132889]
[1720757902876,0.019531,57071.0,57070.0,1.332889]
[1720757903163,0.019531,57071.0,57070.0,1.132889]
[1720757903397,0.019531,57071.0,57070.0,1.13580974]
[1720757904057,0.019531,57071.0,57070.0,1.132889]
[1720757904282,0.018531,57071.0,57070.0,1.129889]
[1720757904500,0.019531,57071.0,57070.0,1.142889]
[1720757904914,0.019531,57071.0,57070.0,1.140889]
[1720757905121,0.018531,57071.0,57070.0,1.140889]
[1720757905324,0.019531,57071.0,57070.0,1.152889]
[1720757911796,0.019531,57071.0,57070.0,0.234297]
[1720757912419,0.0361628,57071.0,57070.0,0.234297]
[1720757913575,0.0361628,57071.0,57070.0,0.175297]
[1720757913755,0.4041248,57071.0,57070.0,0.093097]
[1720757913967,0.6494328,57071.0,57070.0,0.093097]
[1720757914404,0.6484328,57071.0,57070.0,0.021097]
[1720757914613,0.7494328,57071.0,57070.0,0.031097]
[1720757914817,0.7484328,57071.0,57070.0,0.019097]
[1720757915023,0.7484328,57071.0,57070.0,0.009097]
[1720757915233,0.7484328,57071.0,57070.0,0.018097]
[1720757915234,1.15919728,57071.0,57070.0,0.018097]
[1720757915441,1.0607408,57071.0,57070.0,0.027097]
[1720757915660,1.08520854,57071.0,57070.0,0.027097]
[1720757916120,1.08521104,57071.0,57070.0,0.027097]
[1720757917019,1.10121104,57071.0,57070.0,0.027097]
[1720757917264,1.16243884,57071.0,57070.0,0.027097]
[1720757917473,1.18713856,57071.0,57070.0,0.027097]
[1720757917873,1.18613856,57071.0,57070.0,0.018097]
[1720757918105,1.18513856,57071.0,57070.0,0.009097]
[1720757918310,1.28193272,57071.0,57070.0,0.011097]
[1720757918512,1.27293272,57071.0,57070.0,0.010097]
[1720757918746,1.19313856,57071.0,57070.0,0.010097]
[1720757918961,1.44844656,57071.0,57070.0,0.011097]
[1720757919179,1.43844656,57071.0,57070.0,0.010097]
[1720757919556,1.44744656,57071.0,57070.0,0.011097]
[1720757919761,1.71550015,57071.0,57070.0,0.010097]
[1720757919962,0.874683,57064.0,57063.0,0.009097]
[1720757920136,1.06118272,57064.0,57063.0,0.009097]
[1720757920347,1.07777516,57064.0,57063.0,0.009097]
[1720757920551,1.29841344,57064.0,57063.0,0.009097]
[1720757920763,1.30747201,57064.0,57063.0,0.009097]
[1720757921008,1.24567201,57064.0,57063.0,0.009097]
[1720757921262,1.00033401,57064.0,57063.0,0.009097]
[1720757921674,1.00033401,57064.0,57063.0,0.010097]
[1720757922239,0.75499601,57064.0,57063.0,0.010097]
[1720757922445,0.75499601,57064.0,57063.0,0.091497]
[1720757922661,0.75499601,57064.0,57063.0,0.151497]
[1720757923260,0.74456327,57064.0,57063.0,0.151497]
[1720757924108,0.7195047,57064.0,57063.0,0.151497]
[1720757924314,0.74525185,57064.0,57063.0,0.151497]
[1720757924521,0.74524979,57064.0,57063.0,0.151497]
[1720757925652,0.74524979,57064.0,57063.0,0.092497]
[1720757925653,0.63301353,57064.0,57063.0,0.092497]
[1720757926089,0.75568253,57064.0,57063.0,0.092497]
[1720757926497,0.75537398,57064.0,57063.0,0.092497]
[1720757926699,0.75537398,57064.0,57063.0,0.151497]
[1720757927123,0.75537398,57064.0,57063.0,0.092497]
[1720757927498,0.75523039,57064.0,57063.0,0.092497]
[1720757929032,0.26455439,57064.0,57063.0,0.151497]
[1720757929242,0.2825167,57064.0,57063.0,0.151497]
[1720757929466,0.5278547,57064.0,57063.0,0.151497]
[1720757929683,0.28288865,57064.0,57063.0,0.151497]
[1720757929883,0.25722375,57064.0,57063.0,0.151497]
[1720757930722,0.13455475,57064.0,57063.0,0.151497]
[1720757930953,0.03455475,57064.0,57063.0,0.151497]
[1720757931151,0.13455475,57064.0,57063.0,0.151497]
[1720757931782,0.25722375,57064.0,57063.0,0.151497]
[1720757932405,0.13455475,57064.0,57063.0,0.151497]
[1720757933583,0.13455475,57064.0,57063.0,0.51951]
[1720757933584,0.11659244,57064.0,57063.0,0.51951]
[1720757933789,0.01659244,57064.0,57063.0,0.824852]
[1720757934005,0.017531,57071.0,57070.0,0.181656]
[1720757934215,0.04351758,57071.0,57070.0,0.181656]
[1720757934433,0.017531,57071.0,57070.0,0.505568]
[1720757934670,0.017531,57071.0,57070.0,0.81508]
[1720757935750,0.018531,57071.0,57070.0,0.81508]
[1720757936208,0.017531,57071.0,57070.0,0.81508]
[1720757936612,0.018531,57071.0,57070.0,0.82208]
[1720757936923,0.020531,57071.0,57070.0,0.576768]
[1720757937149,0.019531,57071.0,57070.0,0.324456]
[1720757937360,0.017531,57071.0,57070.0,0.336456]
[1720757937561,0.018531,57071.0,57070.0,0.336456]
[1720757937763,0.03607627,57071.0,57070.0,0.347456]
[1720757938658,0.05018627,57071.0,57070.0,0.347456]
[1720757940326,0.05018627,57071.0,57070.0,0.2248]
[1720757941477,0.05018627,57071.0,57070.0,0.347456]
[1720757945411,0.05018627,57071.0,57070.0,0.2248]
[1720757946800,0.05018627,57071.0,57070.0,0.652768]
[1720757947217,0.033641,57071.0,57070.0,0.652768]
[1720757947650,0.033641,57071.0,57070.0,0.407456]
[1720757947861,0.034471,57071.0,57070.0,0.407456]
[1720757948276,0.034471,57071.0,57070.0,0.652768]
[1720757949776,0.034471,57071.0,57070.0,0.89808]
[1720757950500,0.034471,57071.0,57070.0,1.143392]
[1720757950710,0.034471,57071.0,57070.0,0.89808]
[1720757951376,0.034471,57071.0,57070.0,0.2248]
[1720757952105,0.05104706,57071.0,57070.0,0.2248]
[1720757954942,0.66431706,57071.0,57070.0,0.023]
[1720757955534,0.68170863,57071.0,57070.0,0.023]
[1720757956290,0.17370106,57071.0,57070.0,0.1445]
[1720757956515,0.41800906,57071.0,57070.0,0.1335]
[1720757956721,0.66331706,57071.0,57070.0,0.015]
[1720757957092,0.66331706,57071.0,57070.0,0.003]
[1720757957093,1.03952506,57071.0,57070.0,0.003]
[1720757957298,1.06366217,57071.0,57070.0,0.007]
[1720757957923,1.063669,57071.0,57070.0,0.007]
[1720757960691,0.995669,57071.0,57070.0,0.007]
[1720757961104,0.97152506,57071.0,57070.0,0.007]
[1720757961327,0.99598785,57071.0,57070.0,0.007]
[1720757962153,0.93208785,57071.0,57070.0,0.066]
[1720757962353,0.68677985,57071.0,57070.0,0.066]
[1720757963338,0.68677985,57071.0,57070.0,0.007]
[1720757964501,0.68677985,57071.0,57070.0,0.066]
[1720757964640,0.6868632,57071.0,57070.0,0.007]
[1720757964841,0.6868632,57071.0,57070.0,0.066]
[1720757965083,0.68669705,57071.0,57070.0,0.066]
[1720757965473,0.68669705,57071.0,57070.0,0.007]
[1720757966260,0.68669705,57071.0,57070.0,0.066]
[1720757966692,0.68669705,57071.0,57070.0,0.007]
[1720757967943,0.66231706,57071.0,57070.0,0.007]
[1720757968190,0.68654577,57071.0,57070.0,0.007]
[1720757970006,0.52863521,57071.0,57070.0,0.007]
[1720757970242,0.65128921,57071.0,57070.0,0.007]
[1720757970454,0.76728921,57071.0,57070.0,0.007]
[1720757970865,1.01259721,57071.0,57070.0,0.007]
[1720757971070,1.12499721,57071.0,57070.0,0.007]
[1720757971275,1.05699721,57071.0,57070.0,0.007]
[1720757971449,1.0327685,57071.0,57070.0,0.007]
[1720757971678,1.05699041,57071.0,57070.0,0.007]
[1720757972087,0.99659041,57071.0,57070.0,0.007]
[1720757972512,1.12733894,57071.0,57070.0,0.007]
[1720757972711,1.12731425,57071.0,57070.0,0.007]
[1720757972941,0.99659041,57071.0,57070.0,0.007]
[1720757973118,1.12730524,57071.0,57070.0,0.007]
[1720757973368,0.88199724,57071.0,57070.0,0.007]
[1720757973789,0.75128241,57071.0,57070.0,0.007]
[1720757973941,1.12731284,57071.0,57070.0,0.007]
[1720757974155,1.12731752,57071.0,57070.0,0.007]
[1720757974544,1.12732682,57071.0,57070.0,0.007]
[1720757974751,0.9966104,57071.0,57070.0,0.007]
[1720757974985,0.7513024,57071.0,57070.0,0.007]
[1720757975180,0.75113911,57071.0,57070.0,0.007]
[1720757975634,0.75113687,57071.0,57070.0,0.007]
[1720757976431,0.99644487,57071.0,57070.0,0.007]
[1720757978250,1.01244487,57071.0,57070.0,0.007]
[1720757978474,1.1175685,57071.0,57070.0,0.007]
[1720757978682,1.14186173,57071.0,57070.0,0.007]
[1720757979081,1.29870842,57071.0,57070.0,0.007]
[1720757979512,1.01308124,57071.0,57070.0,0.007]
[1720757979938,1.10154255,57071.0,57070.0,0.007]
[1720757980568,1.258383,57071.0,57070.0,0.007]
[1720757981151,1.05339418,57071.0,57070.0,0.007]
[1720757981688,1.29870218,57071.0,57070.0,0.007]
[1720757982007,1.2743879,57071.0,57070.0,0.007]
[1720757982256,1.2743879,57071.0,57070.0,0.004]
[1720757982257,1.54445289,57071.0,57070.0,0.004]
[1720757982460,1.79313349,57071.0,57070.0,0.004]
[1720757982670,1.79313349,57071.0,57070.0,0.001]
[1720757982671,1.80213349,57071.0,57070.0,0.001]
[1720757983242,2.01013349,57071.0,57070.0,0.001]
[1720757983420,2.03313349,57071.0,57070.0,0.001]
[1720757983623,2.20337089,57071.0,57070.0,0.001]
[1720757983868,1.120003,57065.0,57064.0,0.000913]
[1720757984112,1.24392999,57065.0,57064.0,0.000913]
[1720757984324,1.25768574,57065.0,57064.0,0.000913]
[1720757985226,1.25868574,57065.0,57064.0,0.000913]
[1720757985465,1.25871041,57065.0,57064.0,0.000913]
[1720757985977,1.25870973,57065.0,57064.0,0.000913]
[1720757986443,1.41631966,57065.0,57064.0,0.000913]
[1720757987962,1.41657646,57065.0,57064.0,0.000913]
[1720757988526,1.26003409,57065.0,57064.0,0.000913]
[1720757988728,1.23575875,57065.0,57064.0,0.000913]
[1720757988930,1.25990133,57065.0,57064.0,0.000913]
[1720757989853,1.120021,57064.0,57063.0,0.009097]
[1720757990057,1.40070595,57064.0,57063.0,0.009097]
[1720757990309,1.38470595,57064.0,57063.0,0.009097]
[1720757990513,1.3984617,57064.0,57063.0,0.009097]
[1720757991141,1.3984617,57064.0,57063.0,0.010097]
[1720757991305,1.24191933,57064.0,57063.0,0.010097]
[1720757991690,1.24491933,57064.0,57063.0,0.009097]
[1720757991893,1.24791933,57064.0,57063.0,0.009097]
[1720757992349,1.24784019,57064.0,57063.0,0.009097]
[1720757995756,1.22377675,57064.0,57063.0,0.009097]
[1720757995926,1.24784254,57064.0,57063.0,0.009097]
[1720757996128,1.22377675,57064.0,57063.0,0.009097]
[1720757996356,1.24784288,57064.0,57063.0,0.009097]
[1720757996694,1.33014288,57064.0,57063.0,0.009097]
[1720757997280,0.5,57061.0,57060.0,0.000913]
[1720757997479,0.5,57061.0,57054.0,0.000913]
[1720757997480,0.190688,57055.0,57054.0,0.000913]
[1720757997703,0.190688,57055.0,57052.0,0.009097]
[1720757997704,0.368077,57053.0,57052.0,0.009097]
[1720757997937,1.22829813,57053.0,57052.0,0.009097]
[1720757998458,1.84918095,57053.0,57052.0,0.009097]
[1720757998652,1.87218095,57053.0,57052.0,0.009097]
[1720757998857,1.88518095,57053.0,57052.0,0.010097]
[1720757999306,1.84811482,57053.0,57052.0,0.009097]
[1720757999524,1.88464282,57053.0,57052.0,0.010097]
[1720757999972,1.79547863,57053.0,57052.0,0.010097]
[1720758000188,1.00907282,57053.0,57052.0,0.010097]
[1720758000403,1.10237282,57053.0,57052.0,0.010097]
[1720758000612,1.02007282,57053.0,57052.0,0.010097]
[1720758001286,1.02118849,57053.0,57052.0,0.010097]
[1720758001511,1.01018849,57053.0,57052.0,0.010097]
[1720758001737,1.6607533,57053.0,57052.0,0.010097]
[1720758001950,1.6607533,57053.0,57052.0,0.009097]
[1720758001951,1.67034192,57053.0,57052.0,0.009097]
[1720758002378,1.67034192,57053.0,57052.0,0.088997]
[1720758002379,1.24363841,57053.0,57052.0,0.088997]
[1720758002579,1.02663841,57053.0,57052.0,0.154597]
[1720758002997,1.01963841,57053.0,57052.0,0.154597]
[1720758004001,1.01363841,57053.0,57052.0,0.154597]
[1720758004195,1.26802341,57053.0,57052.0,0.154597]
[1720758004571,1.27002341,57053.0,57052.0,0.154597]
[1720758004780,1.25902341,57053.0,57052.0,0.088997]
[1720758004990,1.25902341,57053.0,57052.0,0.009097]
[1720758004991,1.26702341,57053.0,57052.0,0.009097]
[1720758005208,1.31519112,57053.0,57052.0,0.009097]
[1720758005463,1.33131496,57053.0,57052.0,0.009097]
[1720758005670,1.30719112,57053.0,57052.0,0.009097]
[1720758005836,1.33917052,57053.0,57052.0,0.009097]
[1720758006074,1.32917052,57053.0,57052.0,0.009097]
[1720758006555,1.34017052,57053.0,57052.0,0.009097]
[1720758007023,1.27777052,57053.0,57052.0,0.009097]
[1720758007277,1.03238552,57053.0,57052.0,0.009097]
[1720758007781,1.02486483,57053.0,57052.0,0.009097]
[1720758008026,1.27024983,57053.0,57052.0,0.009097]
[1720758008261,1.02486483,57053.0,57052.0,0.009097]
[1720758008491,1.03486483,57053.0,57052.0,0.009097]
[1720758008741,1.03480183,57053.0,57052.0,0.009097]
[1720758008973,1.28018683,57053.0,57052.0,0.009097]
[1720758009865,1.28018683,57053.0,57048.0,0.009097]
[1720758009866,0.2,57051.0,57048.0,0.009097]
[1720758010071,0.122701,57049.0,57048.0,0.009097]
[1720758010208,0.73790271,57049.0,57048.0,0.009097]
[1720758010617,0.98330571,57049.0,57048.0,0.009097]
[1720758010838,1.24234182,57049.0,57048.0,0.009097]
[1720758011291,1.24734182,57049.0,57048.0,0.009097]
[1720758011748,1.38745297,57049.0,57048.0,0.009097]
[1720758012193,1.38739108,57049.0,57048.0,0.009097]
[1720758012645,1.24727993,57049.0,57048.0,0.009097]
[1720758013063,1.25227993,57049.0,57048.0,0.009097]
[1720758013453,1.45227993,57049.0,57048.0,0.009097]
[1720758013663,1.25227993,57049.0,57048.0,0.009097]
[1720758014332,1.24727993,57049.0,57048.0,0.009097]
[1720758014507,1.41751733,57049.0,57048.0,0.009097]
[1720758014714,1.41251733,57049.0,57048.0,0.009097]
[1720758014910,1.43551733,57049.0,57048.0,0.009097]
[1720758015565,1.41118351,57049.0,57048.0,0.009097]
[1720758015774,1.43558017,57049.0,57048.0,0.009097]
[1720758017405,1.26534277,57049.0,57048.0,0.009097]
[1720758018249,1.28834277,57049.0,57048.0,0.009097]
[1720758019081,1.28844716,57049.0,57048.0,0.009097]
[1720758022613,1.28799875,57049.0,57048.0,0.009097]
[1720758022816,1.37039875,57049.0,57048.0,0.009097]
[1720758023221,1.43931549,57049.0,57048.0,0.009097]
[1720758023405,1.52171549,57049.0,57048.0,0.009097]
[1720758024199,1.72171549,57049.0,57048.0,1e-08]
[1720758024580,1.78531549,57049.0,57048.0,1e-08]
[1720758024851,2.19871849,57049.0,57048.0,1e-08]
[1720758025061,1.99871849,57049.0,57048.0,1e-08]
[1720758025474,1.75331549,57049.0,57048.0,1e-08]
[1720758025900,1.72926285,57049.0,57048.0,1e-08]
[1720758026116,1.75268824,57049.0,57048.0,1e-08]
[1720758026328,1.75268781,57049.0,57048.0,1e-08]
[1720758027598,1.104426,57043.0,57042.0,0.0783]
[1720758027810,0.368155,57041.0,57040.0,0.000913]
[1720758028024,1.22789096,57041.0,57040.0,0.000913]
[1720758028202,1.24150397,57041.0,57040.0,0.000913]
[1720758029177,1.32390397,57041.0,57040.0,0.000913]
[1720758029639,1.32490397,57041.0,57040.0,0.000913]
[1720758030362,1.32590397,57041.0,57040.0,0.000913]
[1720758030784,1.32590397,57041.0,57031.0,0.001]
[1720758030785,1.204507,57039.0,57031.0,0.0782]
[1720758030991,0.368214,57032.0,57031.0,0.0782]
[1720758031173,1.06499096,57032.0,57031.0,0.0782]
[1720758031667,1.07859989,57032.0,57031.0,0.0782]
[1720758032413,1.08559989,57032.0,57031.0,0.0782]
[1720758032870,1.33190649,57032.0,57031.0,0.0782]
[1720758033386,1.47509714,57032.0,57031.0,0.0782]
[1720758033798,1.46809714,57032.0,57031.0,0.0782]
[1720758034224,1.47409714,57032.0,57031.0,0.0782]
[1720758034461,1.49630291,57032.0,57031.0,0.0782]
[1720758034702,1.49930291,57032.0,57031.0,0.0782]
[1720758035181,1.51030291,57032.0,57031.0,0.0782]
[1720758036102,1.50130291,57032.0,57031.0,0.0782]
[1720758036363,1.51330291,57032.0,57031.0,0.0782]
[1720758036815,1.48984158,57032.0,57031.0,0.0782]
[1720758037037,1.37022575,57032.0,57031.0,0.0782]
[1720758038690,1.37004011,57032.0,57031.0,0.0782]
[1720758039273,1.28764011,57032.0,57031.0,0.0782]
[1720758039468,1.37004011,57032.0,57031.0,0.0782]
[1720758039680,1.34665093,57032.0,57031.0,0.0782]
[1720758039879,1.37054792,57032.0,57031.0,0.0782]
[1720758040414,1.47979739,57032.0,57031.0,0.0782]
[1720758041163,1.28814792,57032.0,57031.0,0.0782]
[1720758041366,1.37054792,57032.0,57031.0,0.0782]
[1720758042847,1.37054792,57032.0,57031.0,0.141]
[1720758043251,1.37153189,57032.0,57031.0,0.141]
[1720758043798,1.40432889,57032.0,57031.0,0.141]
[1720758044750,1.57456629,57032.0,57031.0,0.141]
[1720758045349,1.59136786,57032.0,57031.0,0.141]
[1720758045565,0.06940593,57032.0,57031.0,0.216]
[1720758045985,0.424011,57032.0,57031.0,0.216]
[1720758046189,0.669487,57032.0,57031.0,0.216]
[1720758046396,0.67851093,57032.0,57031.0,0.216]
[1720758046620,0.65551093,57032.0,57031.0,0.216]
[1720758046845,0.65751093,57032.0,57031.0,0.216]
[1720758047050,0.65851093,57032.0,57031.0,0.216]
[1720758047251,0.65651093,57032.0,57031.0,0.216]
[1720758047674,0.92649698,57032.0,57031.0,0.141913]
[1720758048492,1.02649698,57032.0,57031.0,0.141913]
[1720758049020,1.02667156,57032.0,57031.0,0.141913]
[1720758049191,1.02567156,57032.0,57031.0,0.141913]
[1720758049397,1.06817876,57032.0,57031.0,0.141913]
[1720758049604,1.02467156,57032.0,57031.0,0.141913]
[1720758049753,1.00098693,57032.0,57031.0,0.141913]
[1720758049961,1.02454571,57032.0,57031.0,0.141913]
[1720758050521,1.07030271,57032.0,57031.0,0.141913]
[1720758050881,1.07130271,57032.0,57031.0,0.141913]
[1720758051090,1.20297918,57032.0,57031.0,0.141913]
[1720758051354,1.20697918,57032.0,57031.0,0.141913]
[1720758051508,1.20297918,57032.0,57031.0,0.141913]
[1720758052195,1.20297918,57032.0,57031.0,0.079113]
[1720758052196,1.07130271,57032.0,57031.0,0.079113]
[1720758052335,1.07030271,57032.0,57031.0,0.001913]
[1720758052535,1.07430271,57032.0,57031.0,0.001913]
[1720758052813,1.07430271,57032.0,57031.0,0.140113]
[1720758052814,0.82882671,57032.0,57031.0,0.140113]
[1720758052992,0.82882671,57032.0,57031.0,0.215113]
[1720758052993,0.57935071,57032.0,57031.0,0.215113]
[1720758053165,0.58335071,57032.0,57031.0,0.215113]
[1720758053375,0.21892427,57032.0,57031.0,0.215113]
[1720758053578,0.19157793,57032.0,57031.0,0.643333]
[1720758053781,0.19157793,57032.0,57031.0,0.337853]
[1720758053782,0.08757793,57032.0,57031.0,0.337853]
[1720758054171,0.08757793,57032.0,57031.0,0.215113]
[1720758054369,0.47958102,57032.0,57031.0,0.140113]
[1720758054575,0.72505702,57032.0,57031.0,0.140113]
[1720758055827,0.72605702,57032.0,57031.0,0.215113]
[1720758056031,0.48058102,57032.0,57031.0,0.215113]
[1720758056240,0.11236702,57032.0,57031.0,0.215113]
[1720758056428,0.08757793,57032.0,57031.0,0.215113]
[1720758056635,0.08857793,57032.0,57031.0,0.215113]
[1720758057051,0.08757793,57032.0,57031.0,0.215113]
[1720758057216,0.08757793,57032.0,57031.0,0.27803374]
[1720758057421,0.08957793,57032.0,57031.0,0.397853]
[1720758057634,0.08857793,57032.0,57031.0,0.337853]
[1720758057893,0.08857793,57032.0,57031.0,0.64625374]
[1720758058071,0.08957793,57032.0,57031.0,1.1377997]
[1720758058233,0.080554,57032.0,57031.0,1.1377997]
[1720758058654,0.079554,57032.0,57031.0,1.1377997]
[1720758058892,0.080554,57032.0,57031.0,1.1377997]
[1720758060036,0.079554,57032.0,57031.0,1.1377997]
[1720758060268,0.080554,57032.0,57031.0,0.828813]
[1720758060499,0.080554,57032.0,57031.0,0.888813]
[1720758060500,0.081554,57032.0,57031.0,0.888813]
[1720758060721,0.079554,57032.0,57031.0,0.888813]
[1720758061141,0.080554,57032.0,57031.0,0.337853]
[1720758061340,0.08966725,57032.0,57031.0,0.34077374]
[1720758061785,0.08966725,57032.0,57031.0,0.583333]
[1720758061988,0.080554,57032.0,57031.0,0.583333]
[1720758062194,0.080554,57032.0,57031.0,0.215113]
[1720758062394,0.447768,57032.0,57031.0,0.215113]
[1720758062601,0.47934867,57032.0,57031.0,0.215113]
[1720758062801,0.45787553,57032.0,57031.0,0.215113]
[1720758063024,0.480598,57032.0,57031.0,0.215113]
[1720758063229,0.479598,57032.0,57031.0,0.215113]
[1720758063681,0.480598,57032.0,57031.0,0.215113]
[1720758063882,0.726074,57032.0,57031.0,0.215113]
[1720758064085,0.480598,57032.0,57031.0,0.215113]
[1720758064286,0.45687553,57032.0,57031.0,0.215113]
[1720758064710,0.45787553,57032.0,57031.0,0.215113]
[1720758065258,0.45887553,57032.0,57031.0,0.215113]
[1720758065673,0.09066153,57032.0,57031.0,0.215113]
[1720758066098,0.08866153,57032.0,57031.0,0.215113]
[1720758068662,0.08866153,57032.0,57031.0,1.134293]
[1720758069036,0.079554,57032.0,57031.0,1.134293]
[1720758069442,0.079554,57032.0,57031.0,1.074293]
[1720758069643,0.078554,57032.0,57031.0,0.583333]
[1720758069843,0.078554,57032.0,57031.0,0.275113]
[1720758070043,0.079554,57032.0,57031.0,0.48296735]
[1720758070652,0.079554,57032.0,57031.0,0.97392735]
[1720758071178,0.077554,57032.0,57031.0,0.97392735]
[1720758071378,0.078554,57032.0,57031.0,0.98092735]
[1720758071582,0.077554,57032.0,57031.0,0.222113]
[1720758071784,0.078554,57032.0,57031.0,0.228113]
[1720758071988,0.08765702,57032.0,57031.0,0.228113]
[1720758072413,0.08665702,57032.0,57031.0,0.222113]
[1720758072532,0.08765702,57032.0,57031.0,0.234113]
[1720758076028,0.00910302,57032.0,57031.0,0.234113]
[1720758076233,0.368209,57033.0,57031.0,0.234113]
[1720758076474,0.122738,57032.0,57031.0,0.234113]
[1720758077510,0.122738,57032.0,57031.0,0.215113]
[1720758077892,0.122738,57032.0,57031.0,0.229113]
[1720758078093,0.122738,57032.0,57031.0,0.222113]
[1720758078309,0.122738,57032.0,57031.0,0.215113]
[1720758078509,0.123738,57032.0,57031.0,0.222113]
[1720758078732,0.370214,57032.0,57031.0,0.229113]
[1720758078877,0.39323267,57032.0,57031.0,0.229113]
[1720758079531,0.39323763,57032.0,57031.0,0.229113]
[1720758080248,0.39323763,57032.0,57031.0,0.090913]
[1720758080494,0.39323763,57032.0,57031.0,0.015913]
[1720758080495,0.63871363,57032.0,57031.0,0.015913]
[1720758081377,0.88218963,57032.0,57031.0,0.001913]
[1720758081650,0.88218963,57032.0,57031.0,0.007913]
[1720758081651,0.98318963,57032.0,57031.0,0.007913]
[1720758081863,0.98418963,57032.0,57031.0,0.013913]
[1720758082475,0.86145163,57032.0,57031.0,0.013913]
[1720758082681,0.98418963,57032.0,57031.0,0.013913]
[1720758083066,0.98384413,57032.0,57031.0,0.013913]
[1720758086551,0.98392429,57032.0,57031.0,0.013913]
[1720758086984,0.98391061,57032.0,57031.0,0.013913]
[1720758087189,0.98391061,57032.0,57031.0,0.073913]
[1720758087802,0.98391061,57032.0,57031.0,0.088913]
[1720758088009,0.98391061,57032.0,57031.0,0.013913]
[1720758089979,1.04395267,57032.0,57031.0,0.013913]
[1720758090178,1.35742867,57032.0,57031.0,0.013913]
[1720758090759,1.51421676,57032.0,57031.0,0.013913]
[1720758090964,1.51221676,57032.0,57031.0,0.001913]
[1720758091345,1.53121676,57032.0,57031.0,0.003913]
[1720758092337,1.06095267,57032.0,57031.0,0.003913]
[1720758093534,1.06095267,57032.0,57031.0,0.154713]
[1720758093535,0.75966778,57032.0,57031.0,0.154713]
[1720758093849,0.51419178,57032.0,57031.0,0.154713]
[1720758094267,0.51419178,57032.0,57031.0,0.217413]
[1720758094268,0.13697778,57032.0,57031.0,0.217413]
[1720758094683,0.26271578,57032.0,57031.0,0.217413]
[1720758095420,0.25271578,57032.0,57031.0,0.216413]
[1720758095799,0.50119178,57032.0,57031.0,0.216413]
[1720758096038,0.474214,57032.0,57031.0,0.216413]
[1720758096722,0.71969,57032.0,57031.0,0.216413]
[1720758096859,0.71969,57032.0,57031.0,0.152713]
[1720758098918,0.74685995,57032.0,57031.0,0.152713]
[1720758100817,0.71969,57032.0,57031.0,0.152713]
[1720758101025,0.74691847,57032.0,57031.0,0.152713]
[1720758101250,0.74691674,57032.0,57031.0,0.152713]
[1720758103313,0.99239274,57032.0,57031.0,0.077713]
[1720758103490,0.99239274,57032.0,57031.0,0.076913]
[1720758104569,0.99239003,57032.0,57031.0,0.076913]
[1720758109954,0.74691403,57032.0,57031.0,0.076913]
[1720758110175,0.50143803,57032.0,57031.0,0.076913]
[1720758110424,0.03322403,57032.0,57031.0,0.222713]
[1720758110626,0.006,57032.0,57031.0,0.650933]
[1720758110776,0.006,57032.0,57031.0,1.141893]
[1720758111403,0.006,57032.0,57031.0,1.341893]
[1720758111605,0.003,57032.0,57031.0,1.341893]
[1720758111844,0.00083,57038.0,57037.0,0.488181]
[1720758112045,0.00083,57038.0,57037.0,0.43004135]
[1720758112247,0.00083,57038.0,57037.0,0.30731435]
[1720758112842,0.00083,57038.0,57037.0,0.43004135]
[1720758113248,0.00183,57038.0,57037.0,0.43704135]
[1720758113665,0.00283,57038.0,57037.0,0.44304135]
[1720758115007,0.00283,57038.0,57037.0,0.68849535]
[1720758117786,0.00283,57038.0,57037.0,0.74849535]
[1720758120068,0.00283,57038.0,57037.0,0.68849535]
[1720758120442,0.00283,57038.0,57037.0,0.44304135]
[1720758121353,0.00283,57038.0,57037.0,0.68849535]
[1720758122739,0.00283,57038.0,57037.0,0.32031435]
[1720758122954,0.00283,57038.0,57037.0,0.2352]
[1720758124317,0.00283,57038.0,57037.0,0.171]
[1720758124524,0.125555,57038.0,57037.0,0.171]
[1720758124701,0.371005,57038.0,57037.0,0.171]
[1720758126535,0.616455,57038.0,57037.0,0.013]
[1720758126733,0.64465641,57038.0,57037.0,0.013]
[1720758127816,0.99010641,57038.0,57037.0,0.013]
[1720758127940,0.99060013,57038.0,57037.0,0.013]
[1720758128552,0.98960013,57038.0,57037.0,0.007]
[1720758128979,0.98960013,57038.0,57037.0,0.012]
[1720758128980,0.99060013,57038.0,57037.0,0.012]
[1720758129678,0.98960013,57038.0,57037.0,0.005]
[1720758130088,0.99060013,57038.0,57037.0,0.01]